Cogmind - Beta 17.1 @@@ ROGUE MODE // 2026.09.21 @ 21:30:03 Player: C0GU55Y Result: Destroyed by 8R-AWN with 8R-AWN's Boregun Performance ------------- Evolutions (0) 0 Regions Visited (3) 600 Robots Destroyed (13) 65 Value Destroyed (230) 230 Prototype IDs (23) 460 Alien Tech Used (0) 0 Bonus (318) 318 TOTAL SCORE: 1673 Bonus ------- Follower Combat Kills 85 Aligned with FarCom 300 Friendly Fire -67 Cogmind --------- Core Integrity 0/250 Matter 127/300 Energy 100/100 System Corruption 6% Temperature Cool (57) Movement Treading (160) Location -10/Exiles Parts ------- > --- POWER (1) -------- (None) > --- PROPULSION (2) --- Light Treads Wheel > --- UTILITY (2) ------ Small Storage Unit Sensor Array > --- WEAPON (2) ------- Latent Energy Streamer Grenade Launcher > --- INVENTORY (8) ---- Wheel Wheel Compact Wheel Medium Matter Pod (0) Particle Gun Light Assault Rifle Peak State ------------ > --- POWER ------------ Light Nuclear Core > --- PROPULSION ------- Light Treads Wheel > --- UTILITY ---------- Small Storage Unit Sensor Array > --- WEAPON ----------- Particle Gun Latent Energy Streamer > --- INVENTORY -------- Wheel Wheel Compact Wheel Medium Matter Pod Light Assault Rifle Grenade Launcher [Rating: 19] Favorites ----------- Power Ion Engine Engine Ion Engine Power Core Light Nuclear Core Propulsion Light Treads Treads Light Treads Wheel Compact Wheel Utility Small Storage Unit Device Sensor Array Storage Small Storage Unit Protection Light Armor Plating Weapon Medium Laser Energy Gun Medium Laser Energy Cannon Latent Energy Streamer Ballistic Gun Assault Rifle Launcher Grenade Launcher Build | -11 -10 -10 -10 ------- Run | Yrd Mat Min Exi Slots Evolved . | . . . . Power . | . . . . Propulsion . | . . . . Utility . | . . . . Weapon . | . . . . Parts Attached 16 | 6 4 5 1 Power 2 | 1 . 1 . Engine 1 | 1 . . . Core 1 | . . 1 . Reactor . | . . . . Propulsion 5 | 2 1 2 . Treads 2 | 1 . 1 . Leg . | . . . . Wheel 3 | 1 1 1 . Hover . | . . . . Flight . | . . . . Utility 3 | 1 2 . . Device 1 | . 1 . . Storage 1 | 1 . . . Processor . | . . . . Hackware . | . . . . Protection 1 | . 1 . . Artifact . | . . . . Weapon 6 | 2 1 2 1 Energy Gun 2 | 1 . 1 . Energy Cannon 1 | . . . 1 Ballistic Gun 2 | 1 . 1 . Ballistic Cannon . | . . . . Launcher 1 | . 1 . . Special Weapon . | . . . . Impact Weapon . | . . . . Slashing Weapon . | . . . . Piercing Weapon . | . . . . Special Melee Weapon . | . . . . Unidentified Prototypes . | . . . . Parts Lost 5 | . . 4 1 Power 2 | . . 1 1 Propulsion 1 | . . 1 . Utility 1 | . . 1 . Weapon 1 | . . 1 . Highest Loss Streak 4 | . . 4 1 To Critical Strikes . | . . . . Average Backups 6 | 2 7 7 5 Power . | . 1 . . Propulsion 3 | 1 3 2 3 Utility . | . . 1 1 Weapon 2 | . 1 2 1 Tool/Special . | . . . . Unused Backups 6 | . 1 4 1 Power 2 | . . 2 . Propulsion 2 | . 1 . 1 Utility . | . . . . Weapon 2 | . . 2 . Tool/Special . | . . . . Average Slot Usage (%) 97 | . 99 95 98 Engine 10 | . 14 12 . Core 2 | . . 1 12 Treads 13 | . 14 13 14 Wheel 14 | . 14 14 14 Device 10 | . 9 10 14 Storage 14 | . 14 14 14 Protection 2 | . 3 2 . Energy Gun 13 | . 14 13 11 Energy Cannon 1 | . . . 5 Ballistic Gun 9 | . 14 7 8 Launcher 2 | . . 5 2 Peak Build Rating 19 | 6 7 10 19 Average Rating 8 | 5 6 7 13 On Entrance 5 | . 6 7 10 Avg Prop Armor Cover (%) 8 | 14 8 4 12 Naked Turns . | . . . . Heaviest Build 24 | 14 17 17 24 Greatest Support 20 | 10 20 20 10 Greatest Overweight (x) 3 | 1 1 3 2 Average Overweight (x) . | . . . 1 Largest Inventory Capacity 8 | 8 8 8 8 Average Capacity 7 | 7 8 8 8 Most Carried 8 | 5 8 8 6 Average Carried 6 | 2 7 7 5 Final Capacity 8 | 8 8 8 8 Final Carried 8 | 5 8 5 6 Class Distribution -------------------- 100% | Mutant Dominant Class ---------------- Mutant | -10/Materials Mutant | -10/Mines Mutant | -10/Exiles Resources | -11 -10 -10 -10 ----------- Run | Yrd Mat Min Exi Matter Collected 439 | 246 102 91 . Remotely . | . . . . Salvage Created 302 | 14 209 26 53 Parts 20 | 4 12 4 . Haulers Intercepted . | . . . . Recyclers Shooed . | . . . . Parts Field Recycled . | . . . . Retrieved Matter . | . . . . Parts Self-Destructed . | . . . . Prevented . | . . . . Parts Restored . | . . . . Kills | -11 -10 -10 -10 ------- Run | Yrd Mat Min Exi Combat Hostiles Destroyed 16 | . 4 5 7 Guns 5 | . 4 1 . AOE 10 | . . 3 7 Classes Destroyed 8 | 1 5 1 1 Worker 1 | . 1 . . Tunneler 1 | 1 . . . Recycler 1 | . 1 . . Watcher 1 | . 1 . . Swarmer 6 | . 3 3 . Grunt 1 | . 1 . . Demolisher 2 | . . 2 . Assembled 7 | . . . 7 Best Kill Streak 7 | 1 5 3 7 Combat Bots Only 7 | . 3 3 7 Max Kills in Single Turn 2 | 1 1 2 2 Gunslinging . | . . . . Exploded 2 | . . 2 2 Melee . | . . . . Uniques/NPCs Destroyed . | . . . . Combat | -11 -10 -10 -10 -------- Run | Yrd Mat Min Exi Hostile Shots Fired 66 | . 19 23 24 Missed 17 | . 8 2 7 Hits 49 | . 11 21 17 Projectile 49 | . 11 21 17 AOE 18 | . . 18 . Critical Strikes 4 | . . . 4 Damage Taken 1132 | . 91 796 245 Core 258 | . . 212 46 Absorbed by Shields . | . . . . Core Remaining (%) 100 | 100 . . . Volleys Fired 44 | 2 17 14 11 Largest 2 | 2 2 2 1 Hottest 70 | 70 70 70 60 Shots Fired 64 | 4 31 18 11 Gun 50 | 4 31 15 . Cannon 2 | . . . 2 Launcher 12 | . . 3 9 Special . | . . . . Kinetic 21 | 2 15 4 . Thermal 29 | 2 16 11 . Explosive 12 | . . 3 9 Electromagnetic 2 | . . . 2 Robot Hit Streak 9 | 1 8 9 4 Robot Miss Streak 5 | 1 5 4 1 Penetration Max . | . . . . Secondary Targets . | . . . . Shots Hit Robots 37 | 2 18 11 6 Core Hits 31 | 1 10 6 14 Critical Kills . | . . . . Critical Parts Destroyed . | . . . . Critical Strikes 4 | . 2 2 . Burn 4 | . 2 2 . Melee Attacks . | . . . . Impact . | . . . . Slashing . | . . . . Piercing . | . . . . Sneak Attacks . | . . . . Combat Hostiles . | . . . . Follow-up Attacks . | . . . . Damage Inflicted 877 | 25 246 233 373 Guns 401 | 25 246 130 . Cannons . | . . . . Explosions 476 | . . 103 373 Melee . | . . . . Ramming . | . . . . Kinetic 149 | . 112 37 . Thermal 252 | 25 134 93 . Explosive 301 | . . 103 198 Electromagnetic 175 | . . . 175 Impact . | . . . . Slashing . | . . . . Piercing . | . . . . Highest Corruption 6 | . . . 6 Average Corruption 5 | . . . 5 Corruption Purged . | . . . . Corruption Blocked . | . . . . Effects 2 | . . . 2 Heat Flow Errors 1 | . . . 1 Energy Discharges 1 | . . . 1 Overload Shots . | . . . . Overflow Damage 22 | . . . 22 Projectiles . | . . . . Explosions 22 | . . . 22 Melee . | . . . . Knockbacks . | . . . . Impact . | . . . . Kinetic . | . . . . Secondary . | . . . . Self-Inflicted Damage 45 | . . 29 16 Shots 2 | . . 1 1 Rammed . | . . . . Targets Rammed . | . . . . Kicked . | . . . . Crushed . | . . . . Highest Temperature 222 | 18 110 196 222 Average Temperature 60 | 10 52 72 71 Received Heat Transfer 44 | . 6 18 20 Siege Activations . | . . . . Martial Activations . | . . . . Shielding Activations . | . . . . Robots Disrupted . | . . . . Combat Hostiles . | . . . . Robots Corrupted . | . . . . Combat Hostiles . | . . . . Parts Fried . | . . . . Impact Corruptions . | . . . . Robots Melted . | . . . . Combat Hostiles . | . . . . Parts Melted 2 | . 2 . . Heat Transferred 1036 | 74 555 407 . Parts Sabotaged . | . . . . Parts Stolen . | . . . . Parts Stripped . | . . . . Power Chain Reactions . | . . . . Latent Energy Used 400 | . . . 400 LE Corruption 6 | . . . 6 Alert | -11 -10 -10 -10 ------- Run | Yrd Mat Min Exi Maximum Alert Level . | . . . . Low Security (%) 100 | 100 100 100 . Level 1 . | . . . . Level 2 . | . . . . Level 3 . | . . . . Level 4 . | . . . . Level 5 . | . . . . High Security . | . . . . Max Security . | . . . . Peak Influence 100 | 5 68 100 . Initial 3 | . . 3 . Average 29 | . 23 38 . Influence Increases 341 | 5 125 211 . Destroy 0b10 Robot/C 240 | . 80 160 . Destroy 0b10 Robot/NC 20 | 5 15 . . Destroy Leader 52 | . 22 30 . Allied During Kill 4 | . . 4 . Successful Hack 7 | . 7 . . Destroy Structure 18 | . 1 17 . Influence Decreases 341 | 5 117 215 4 Entered New Map 9 | . . 5 4 Time Decay 281 | 5 117 159 . Lost Part 40 | . . 40 . Lost Ally 11 | . . 11 . Squads Dispatched 2 | . 2 . . Investigation 1 | . 1 . . Extermination . | . . . . Reinforcement 1 | . 1 . . Assault . | . . . . Garrison . | . . . . Intercept . | . . . . Searches Triggered . | . . . . Construction Impeded . | . . . . Haulers Reinforced . | . . . . Active Scanning Responses . | . . . . Cargo Convoy Interrupts . | . . . . Stealth | -11 -10 -10 -10 --------- Run | Yrd Mat Min Exi Distress Signals 1 | . 1 . . Communications Jammed . | . . . . Distress Signals . | . . . . Times Spotted 23 | . 8 8 7 Peak Tracking Total 9 | . 6 3 9 Tactical Retreats . | . . . . Traps | -11 -10 -10 -10 ------- Run | Yrd Mat Min Exi Traps Triggered . | . . . . Indirectly . | . . . . Trap Hack Attempts . | . . . . Triggered . | . . . . Disarmed . | . . . . Reprogrammed . | . . . . Reused . | . . . . Traps Extracted . | . . . . Installed . | . . . . Triggered . | . . . . Machines | -11 -10 -10 -10 ---------- Run | Yrd Mat Min Exi Machines Disabled 4 | . . . 4 Max in Single Turn 2 | . . . 2 Machines Repaired . | . . . . Machines Dismantled . | . . . . Machines Sabotaged . | . . . . Overloaded Fab Kills . | . . . . Hacking | -11 -10 -10 -10 --------- Run | Yrd Mat Min Exi Machines Accessed 3 | . 2 . 1 Terminals 2 | . 2 . . Fabricators . | . . . . Repair Stations . | . . . . Recycling Units . | . . . . Scanalyzers . | . . . . Garrison Access . | . . . . Total Hacks 6 | . 5 . 1 Successful 2 | . 1 . 1 Failed 4 | . 4 . . Catastrophic 1 | . 1 . . Database Lockouts . | . . . . Manual 1 | . . . 1 Terminals 5 | . 5 . . Fabricators . | . . . . Repair Stations . | . . . . Recycling Units . | . . . . Scanalyzers . | . . . . Garrison Access . | . . . . Terminal Hacks 2 | . 1 . 1 Surveillance Status 1 | . 1 . . Proto ID Catalog 1 | . . . 1 Fabricator Hacks . | . . . . Repair Station Hacks . | . . . . Recycling Unit Hacks . | . . . . Scanalyzer . | . . . . Garrison Access Hacks . | . . . . Unauthorized Hacks . | . . . . Terminals . | . . . . Fabricators . | . . . . Repair Stations . | . . . . Recycling Units . | . . . . Scanalyzers . | . . . . Garrison Access . | . . . . Data Cores Recovered . | . . . . Used . | . . . . Hacking Detections 2 | . 2 . . Full Trace Events 2 | . 2 . . Feedback Events . | . . . . Feedback Blocked . | . . . . Robot Schematics Acquired . | . . . . Robots Built . | . . . . Authchips . | . . . . Time . | . . . . Total Robot Build Rating . | . . . . Part Schematics Acquired . | . . . . Parts Built . | . . . . Authchips . | . . . . Time . | . . . . Total Part Build Rating . | . . . . Part Studies Acquired . | . . . . Parts Repaired . | . . . . Time . | . . . . Parts Recycled . | . . . . Recycled Matter . | . . . . Retrieved Matter . | . . . . Retrieved Components . | . . . . Parts Scanalyzed . | . . . . Part Schematics Acquired . | . . . . Parts Damaged . | . . . . Bothacking | -11 -10 -10 -10 ------------ Run | Yrd Mat Min Exi Used RIF Installer . | . . . . Robots Hacked . | . . . . Non-combat . | . . . . Combat . | . . . . Robot Hacks Applied . | . . . . Relay Couplers Released . | . . . . Fabnet Peak Effective % . | . . . . Robots Rewired . | . . . . Allies Hacked . | . . . . Hacks Repelled . | . . . . Allies | -11 -10 -10 -10 -------- Run | Yrd Mat Min Exi Total Allies 1 | . . 1 . Largest Group 1 | . . 1 . Highest-Rated Group 31 | . . 31 . Highest-Rated Ally 31 | . . 31 . Total Orders . | . . . . Ally Attacks 10 | . . 10 . Total Damage 150 | . . 150 . Kills 3 | . . 3 . Allies Corrupted . | . . . . Allies Melted . | . . . . Intel | -11 -10 -10 -10 ------- Run | Yrd Mat Min Exi Active Infowar (turns) 760 | . 273 350 137 Sensors 760 | . 273 350 137 Robot Analysis Total . | . . . . Derelict Logs Recovered 1 | . . 1 . Drone Launches . | . . . . Drone Recoveries . | . . . . Exploration | -11 -10 -10 -10 ------------- Run | Yrd Mat Min Exi Turns Passed 1092 | 70 373 467 182 Spaces Moved 697 | 55 221 279 142 Core 2 | 1 . 1 . Treads 296 | . 78 218 . Legs . | . . . . Wheels 399 | 54 143 60 142 Hover . | . . . . Flight . | . . . . Fastest Speed 50 | 50 95 80 95 Average Speed 123 | 91 120 146 97 Slowest Speed 200 | 95 160 200 110 Overloaded Moves . | . . . . Propulsion Burnouts . | . . . . Robots Hopped . | . . . . Potential Cave-ins . | . . . . Cave-ins Triggered . | . . . . Exploration Rate (%) 38 | 3 52 60 40 Regions Visited 3 Branch Regions 2 Pre-discovered Areas . | . . . . Known Exits Taken . | . . . . Unknown Exits Taken 3 | 1 1 1 . Scrap Searched . | . . . . Spaces Dug . | . . . . Terrain Destroyed 40 | . . 19 21 Melee . | . . . . Projectile . | . . . . AOE 40 | . . 19 21 Terrain Rammed . | . . . . Walls Destroyed . | . . . . Machines Disabled . | . . . . Actions | -11 -10 -10 -10 --------- Run | Yrd Mat Min Exi Total 861 | 67 296 323 175 Wait 73 | . 48 6 19 Move 694 | 54 220 278 142 Hop . | . . . . Pick Up 15 | 5 4 6 . Fast Attach 9 | 6 2 . 1 Attach 6 | . . 6 . Detach 2 | . . 1 1 Swap 11 | . 3 7 1 Drop 7 | . 2 5 . Fire 44 | 2 17 14 11 Melee . | . . . . Ram . | . . . . Kick . | . . . . Crush . | . . . . Escape Stasis . | . . . . Rewire . | . . . . Trap . | . . . . Miscellaneous . | . . . . Route ------- -11/Scrapyard -10/Materials (discovered 2 exits: [*Mat] / [*Min]) -10/Mines (discovered 3 exits: [*Mat x2] / *Exi) -10/Exiles History --------- Turn | Location | Event 21 | -11/Scrapyard | Discovered new exit (range 15) 71 | -11/Scrapyard | Entered Materials 304 | -10/Materials | Build established: Mutant 352 | -10/Materials | Discovered new exit (range 10) 406 | -10/Materials | Discovered new exit (range 5) 444 | -10/Materials | Entered Mines 449 | -10/Mines | Discovered new exit (range 15) 457 | -10/Mines | Learned Materials stockpile data 563 | -10/Mines | Escorted by a lone wolf Derelict 702 | -10/Mines | Assembled infested the area 706 | -10/Mines | A weapon hastily lodged in a ceiling crevice suddenly fell to the ground 802 | -10/Mines | Discovered new exit (range 13) 851 | -10/Mines | Core integrity fell below 50% 869 | -10/Mines | Core integrity fell below 20% 881 | -10/Mines | Lost 4 parts (1p1n1u1w) 905 | -10/Mines | Deemed a non-threat by the Exiles lab entrance 905 | -10/Mines | Discovered new exit (range 5) 911 | -10/Mines | Entered Exiles 935 | -10/Exiles | Met 8R-AWN 951 | -10/Exiles | Met EX-HEX 977 | -10/Exiles | Met EX-BIN 988 | -10/Exiles | Aligned with FarCom system 989 | -10/Exiles | Given EX-Vault access code 1012 | -10/Exiles | Opened EX-Vault 1018 | -10/Exiles | Found Latent Energy Streamer 1043 | -10/Exiles | Warned to stay clear of 0b10 Research branches 1047 | -10/Exiles | Attacked by the Exiles 1093 | -10/Exiles | Destroyed by 8R-AWN with 8R-AWN's Boregun Last Messages --------------- 01060_ as-48393 destroyed. 01063_ System corrupted: Energy discharge (-16). 01071_ as-60683 destroyed. 01073_ BIN's Workstation disabled. 01073_ BIN's Terminal disabled. 01073_ as-22195 destroyed. 01075_ as-92445 destroyed. 01076_ Lgt. Nuclear Core destroyed. 01077_ as-27474 destroyed. 01080_ System corrupted: Heat flow error (+247). 01086_ as-29180 destroyed. 01089_ Penetrated by HV Slug. 01089_ HV Slug penetrates Wall. 01089_ Penetrated by HV Slug. 01089_ HV Slug penetrates Wall. 01091_ Penetrated by HV Slug. 01091_ HV Slug penetrates Wall. 01093_ Penetrated by HV Slug. 01093_ HV Slug penetrates Wall. 01093_ Penetrated by HV Slug. Map ----- +----------------------------------------------------+ | ???????????#X #??????????????????????????????? | | ???????????## #??????????????????????????????? | | ????????????# #??????????????????????????????? | | ????????????# #???#####??????????????????????? | | ????????????# #??"""""#??????????????????????? | | ????????????# ## """#??????????????????????? | | ????????????# X""#??????????????????????? | | ????????????# ## """#??????????????????????? | | ??????####??# #??"""""#??????????????????????? | | ??????"""""?# #???#####??????????????????????? | | ?????"""" ## #??????????????????????????????? | | ????#""X" #??????????????????????????????? | | ????#" #??????????????????????????????? | | ????#" ## #??????????????????????????????? | | ????#""""""?# #?#########????????????????????? | | ?????#"###??# #?#"""""""#????????????????????? | | ????????????# #?#"""""""#????????????????????? | | ????????????# #?#"""""""#????????????????????? | | ???????????## ###" "#????????????????????? | | ???????????#" ##???????????????????? | | ???????????#" ;#?##????????????????? | | ???????????#" ;#;;#????????????????? | | ???????????#" ;; ??????????????????? | | ???????????#" ;#???????????????????? | | ???????????#" ;# """???????????????? | | ???????????## @ """ #??????????????? | | ????????????# "######???????????????? | | ????????????#" """""???????????????????? | | ????????????#" # ""?????????????????? | | ????????????#" """#?""?????????????????? | | ???????????##" #####??"?????????????????? | | ??????????##"" g ###?????????????????????????? | | ?????????##" #????????????????????????????? | | ?????????""" ?????????????????????????????? | | ???????" " " ##???###########??????????????? | | ??????"" " #####"""""""""##?????????????? | | ????? " " """ """"##????????????? | | ??? "" " #????????????? | | ???? " """#????????????? | | ???? " "#???????????## | | ???? " "##?????????##" | | ????? ""###???????#" | | ????? """""" """#??????##" | | ?????? ######""" "#????### | | ??????""#?????#####""" ##???# | | ??????????????????##""" ##?## | | ???????????????????#"""" ### | | ???????????????????#"" # | | ????????????????????""" ## | | ???????????????????? ""#? | +----------------------------------------------------+ Best States ------------- Heat Dissipation 25 Energy Generation 14 Energy Capacity 250 Matter Stores 300 Matter Capacity 300 Sight Range 16 Robot Scan Range 14 Terrain Scan Density 10 Armor Coverage 150 Evasion (%) 44 Recoil Reduction 1 Item Schematics ----------------- None Robot Schematics ------------------ None Fabricated ------------ Nothing Repaired ---------- Nothing Studied --------- None Alien Tech Used ----------------- None Achievements -------------- None Challenges ------------ None Game ------ Seed PlasmaTrackerScrapsphere Manual? 0 Play Time 00:22:25 Cumulative 153.5 hours Start 2026.09.20 @ 23:58:01 End 2026.09.21 @ 21:30:03 Sessions 2 Manual Loads 0 Difficulty Rogue Special Mode None Game No. 163 Rogue 163 Adventurer 0 Explorer 0 Win Type - Total 0 Types 0/0/0/0/0/0/0/0/0/0 Lore% 67 Gallery% 54 Achievement% 39 Wizard Run 0 Options --------- Layout 1 ASCII 0 Keyboard 0 Movement Mouse Keybinds 0 Fullscreen 1 Font 24/Smallcaps Map View 50x35 Zoom Use 0% Tactical HUD 1 Map Filters NONE Filters NONE Steam 1 RUN: da3ca8dd-bb9c-4965-b371-9697f660c411